Cogmind - Beta 9.6 @@@ ROGUE MODE // 2020.05.29 @ 15:03:52 Player: TaxEvasionist Result: Destroyed by G-34 Mercenary with Small Laser Performance ------------- Evolutions (0) 0 Regions Visited (1) 200 Robots Destroyed (15) 75 Value Destroyed (385) 385 Prototype IDs (0) 0 Alien Tech Used (0) 0 Bonus (0) 0 TOTAL SCORE: 660 Bonus ------- None Cogmind --------- Core Integrity 0/250 Matter 234/300 Energy 100/100 System Corruption 0% Temperature Cool (6) Movement Treading (180) Ox1 Location -10/Materials Parts ------- > --- POWER (1) -------- (None) > --- PROPULSION (2) --- Light Treads Compact Wheel > --- UTILITY (2) ------ Small Storage Unit High-capacity Storage Unit > --- WEAPON (2) ------- Assault Rifle > --- INVENTORY (14) --- Ion Engine Ion Engine Light Ion Engine Aluminum Leg Aluminum Leg Aluminum Leg Aluminum Leg Compact Wheel Small Storage Unit Improved Terrain Scanner Datajack Peak State ------------ > --- POWER ------------ Ion Engine > --- PROPULSION ------- Light Treads Compact Wheel > --- UTILITY ---------- Small Storage Unit High-capacity Storage Unit > --- WEAPON ----------- Medium Laser Assault Rifle > --- INVENTORY -------- Light Ion Engine Light Treads Aluminum Leg Aluminum Leg Compact Wheel Small Storage Unit Improved Terrain Scanner Assault Rifle Mining Laser [Rating: 8] Favorites ----------- Power Ion Engine Engine Ion Engine Propulsion Compact Wheel Treads Light Treads Leg Aluminum Leg Wheel Compact Wheel Utility Small Storage Unit Storage Small Storage Unit Weapon Assault Rifle Energy Gun Medium Laser Ballistic Gun Assault Rifle Special Weapon Mining Laser Build | -11 -10 ------- Run | Scr Mat Slots Evolved . | . . Power . | . . Propulsion . | . . Utility . | . . Weapon . | . . Parts Attached 17 | 7 10 Power 3 | 1 2 Engine 3 | 1 2 Core . | . . Reactor . | . . Propulsion 6 | 2 4 Treads 2 | . 2 Leg 2 | 2 . Wheel 2 | . 2 Hover . | . . Flight . | . . Utility 3 | 2 1 Device . | . . Storage 3 | 2 1 Processor . | . . Hackware . | . . Protection . | . . Artifact . | . . Weapon 5 | 2 3 Energy Gun 2 | 1 1 Energy Cannon . | . . Ballistic Gun 2 | 1 1 Ballistic Cannon . | . . Launcher . | . . Special Weapon 1 | . 1 Impact Weapon . | . . Slashing Weapon . | . . Piercing Weapon . | . . Special Melee Weapon . | . . Unidentified Prototypes . | . . Parts Lost 6 | . 6 Power 1 | . 1 Propulsion 1 | . 1 Utility . | . . Weapon 4 | . 4 Highest Loss Streak 5 | . 5 Average Slot Usage (%) 98 | . 98 Engine 13 | . 13 Treads 13 | . 13 Leg 1 | . 1 Wheel 13 | . 13 Storage 28 | . 28 Energy Gun 10 | . 10 Ballistic Gun 16 | . 16 Naked Turns . | . . Heaviest Build 45 | 17 45 Greatest Support 20 | 20 20 Greatest Overweight (x) 2 | . 2 Average Overweight (x) 1 | . 1 Largest Inventory Capacity 14 | 8 14 Average Capacity 12 | 5 13 Most Carried 14 | 8 14 Average Carried 10 | 3 11 Final Capacity 14 | 8 14 Final Carried 11 | 8 11 Class Distribution -------------------- 100% | Mutant Dominant Class ---------------- Mutant | -10/Materials Resources | -11 -10 ----------- Run | Scr Mat Matter Collected 436 | 263 173 Remotely . | . . Salvage Created 576 | 112 464 Parts 22 | 6 16 Haulers Intercepted 1 | . 1 Recyclers Shooed . | . . Parts Field Recycled . | . . Retrieved Matter . | . . Parts Self-Destructed . | . . Prevented . | . . Kills | -11 -10 ------- Run | Scr Mat Combat Hostiles Destroyed 8 | . 8 Guns 8 | . 8 Classes Destroyed 6 | 2 4 Worker 3 | . 3 Tunneler 1 | 1 . Hauler 1 | . 1 Recycler 1 | 1 . Operator 1 | . 1 Grunt 8 | . 8 Best Kill Streak 3 | 2 3 Combat Bots Only 3 | . 3 Max Kills in Single Turn 3 | 2 3 Gunslinging . | . . Exploded . | . . Melee . | . . Uniques/NPCs Destroyed . | . . Combat | -11 -10 -------- Run | Scr Mat Damage Taken 1111 | . 1111 Core 253 | . 253 Absorbed by Shields . | . . Core Remaining (%) 100 | 100 . Volleys Fired 47 | 4 43 Largest 2 | 2 2 Hottest 120 | 70 120 Shots Fired 86 | 8 78 Gun 85 | 8 77 Cannon . | . . Launcher . | . . Special 1 | . 1 Kinetic 54 | 4 50 Thermal 32 | 4 28 Explosive . | . . Electromagnetic . | . . Robot Hit Streak 14 | 5 14 Robot Miss Streak 2 | 1 2 Penetration Max . | . . Secondary Targets 1 | . 1 Max Gunslinging Chain 1 | . 1 Shots Hit Robots 64 | 6 58 Core Hits 30 | 3 27 Critical Hits 1 | . 1 Critical Kills 1 | . 1 Critical Parts Destroyed . | . . Melee Attacks . | . . Impact . | . . Slashing . | . . Piercing . | . . Sneak Attacks . | . . Combat Hostiles . | . . Follow-up Attacks . | . . Damage Inflicted 1255 | 94 1161 Guns 791 | 94 697 Cannons . | . . Explosions 464 | . 464 Melee . | . . Ramming . | . . Kinetic 453 | 56 397 Thermal 802 | 38 764 Explosive . | . . Electromagnetic . | . . Impact . | . . Slashing . | . . Piercing . | . . Highest Corruption . | . . Average Corruption . | . . Corruption Purged . | . . Overload Shots . | . . Overflow Damage 102 | . 102 Projectiles . | . . Explosions 102 | . 102 Melee . | . . Knockbacks . | . . Impact . | . . Kinetic . | . . Secondary . | . . Self-Inflicted Damage 95 | . 95 Shots 1 | . 1 Rammed . | . . Targets Rammed . | . . Kicked . | . . Crushed . | . . Highest Temperature 210 | 36 210 Average Temperature 70 | 19 76 Received Heat Transfer 573 | . 573 Effects 2 | . 2 Interference 2 | . 2 Siege Activations . | . . Robots Corrupted . | . . Combat Hostiles . | . . Parts Fried . | . . Impact Corruptions . | . . Robots Melted . | . . Combat Hostiles . | . . Parts Melted 3 | . 3 Heat Transferred 1201 | 111 1090 Parts Sabotaged . | . . Parts Stolen . | . . Parts Stripped . | . . Power Chain Reactions . | . . Missiles Intercepted . | . . Alert | -11 -10 ------- Run | Scr Mat Peak Influence 157 | 10 157 Average Influence 56 | 2 65 Maximum Alert Level . | . . Low Security (%) 100 | 100 100 Level 1 . | . . Level 2 . | . . Level 3 . | . . Level 4 . | . . Level 5 . | . . High Security . | . . Max Security . | . . Squads Dispatched 4 | . 4 Investigation 3 | . 3 Extermination . | . . Reinforcement 1 | . 1 Assault . | . . Garrison . | . . Intercept . | . . Construction Impeded . | . . Haulers Reinforced . | . . Stealth | -11 -10 --------- Run | Scr Mat Distress Signals 1 | . 1 Communications Jammed . | . . Distress Signals . | . . Times Spotted 15 | . 15 Peak Tracking Total 6 | . 6 Tactical Retreats 1 | . 1 Traps | -11 -10 ------- Run | Scr Mat Traps Triggered 1 | . 1 Indirectly . | . . Trap Hack Attempts . | . . Triggered . | . . Disarmed . | . . Reprogrammed . | . . Reused . | . . Traps Extracted . | . . Installed . | . . Triggered . | . . Machines | -11 -10 ---------- Run | Scr Mat Machines Disabled 4 | . 4 Max in Single Turn 4 | . 4 Machines Sabotaged . | . . Garrisons Compromised . | . . Overloaded Fab Kills . | . . Fab Network Shutdowns . | . . Hacking | -11 -10 --------- Run | Scr Mat Machines Accessed 3 | . 3 Terminals 3 | . 3 Fabricators . | . . Repair Stations . | . . Recycling Units . | . . Scanalyzers . | . . Garrison Access . | . . Total Hacks 9 | . 9 Successful 5 | . 5 Failed 4 | . 4 Catastrophic 1 | . 1 Database Lockouts . | . . Manual 4 | . 4 Terminals 9 | . 9 Fabricators . | . . Repair Stations . | . . Recycling Units . | . . Scanalyzers . | . . Garrison Access . | . . Terminal Hacks 2 | . 2 Locate Traps 1 | . 1 Recall Investigation 1 | . 1 Fabricator Hacks . | . . Repair Station Hacks . | . . Recycling Unit Hacks . | . . Scanalyzer . | . . Garrison Access Hacks . | . . Unauthorized Hacks 3 | . 3 Terminals 3 | . 3 Track 1 | . 1 Botnet 1 | . 1 Operators 1 | . 1 Fabricators . | . . Repair Stations . | . . Recycling Units . | . . Scanalyzers . | . . Garrison Access . | . . Data Cores Recovered . | . . Used . | . . Hacking Detections 2 | . 2 Full Trace Events 2 | . 2 Feedback Events . | . . Feedback Blocked . | . . Robot Schematics Acquired . | . . Robots Built . | . . Matter . | . . Time . | . . Total Robot Build Rating . | . . Part Schematics Acquired . | . . Parts Built . | . . Matter . | . . Time . | . . Total Part Build Rating . | . . Parts Repaired . | . . Time . | . . Parts Recycled . | . . Recycled Matter . | . . Retrieved Matter . | . . Retrieved Components . | . . Parts Scanalyzed . | . . Part Schematics Acquired . | . . Parts Damaged . | . . Bothacking | -11 -10 ------------ Run | Scr Mat Used RIF Installer . | . . Robots Hacked . | . . Non-combat . | . . Combat . | . . Robot Hacks Applied . | . . Relay Couplers Released . | . . Robots Rewired . | . . Allies Hacked . | . . Hacks Repelled . | . . Allies | -11 -10 -------- Run | Scr Mat Total Allies . | . . Largest Group . | . . Highest-Rated Group . | . . Highest-Rated Ally . | . . Total Orders . | . . Ally Attacks . | . . Total Damage . | . . Kills . | . . Allies Corrupted . | . . Allies Melted . | . . Intel | -11 -10 ------- Run | Scr Mat Robot Analysis Total . | . . Derelict Logs Recovered . | . . Drone Launches . | . . Drone Recoveries . | . . Exploration | -11 -10 ------------- Run | Scr Mat Turns Passed 763 | 113 650 Spaces Moved 362 | 75 287 Core 10 | 10 . Treads . | . . Legs 90 | 65 25 Wheels 262 | . 262 Hover . | . . Flight . | . . Fastest Speed 50 | 50 120 Average Speed 118 | 110 120 Slowest Speed 120 | 120 120 Overloaded Moves . | . . Propulsion Burnouts . | . . Robots Hopped . | . . Cave-ins Triggered . | . . Exploration Rate (%) 21 | 5 38 Regions Visited 1 Branch Regions . Pre-discovered Areas . | . . Known Exits Taken . | . . Unknown Exits Taken 1 | 1 . Scrap Searched . | . . Spaces Dug . | . . Terrain Destroyed 29 | . 29 Melee . | . . Projectile . | . . AOE 29 | . 29 Actions | -11 -10 --------- Run | Scr Mat Total 606 | 93 513 Wait 163 | . 163 Move 361 | 74 287 Hop . | . . Pick Up 15 | 8 7 Fast Attach 7 | 7 . Attach 4 | . 4 Detach . | . . Swap 6 | . 6 Drop 3 | . 3 Fire 47 | 4 43 Melee . | . . Ram . | . . Kick . | . . Crush . | . . Escape Stasis . | . . Rewire . | . . Trap . | . . Miscellaneous . | . . Route ------- -11/Scrapyard -10/Materials (discovered 1 exit: [*Mat]) History --------- Turn | Location | Event 9 | -11/Scrapyard | Discovered new exit (range 16) 114 | -11/Scrapyard | Entered Materials 312 | -10/Materials | Build established: Mutant 671 | -10/Materials | Discovered new exit (range 16) 707 | -10/Materials | Core integrity fell below 50% 753 | -10/Materials | Core integrity fell below 20% 764 | -10/Materials | Destroyed by G-34 Mercenary with Small Laser Last Messages --------------- 00737_ K-01 Serf collects debris. 00737_ U-05 Engineer lays Concrete. 00739_ Sml. Laser destroyed. 00740_ K-01 Serf collects debris. 00741_ U-05 Engineer lays Concrete. 00743_ K-01 Serf collects debris. 00744_ U-05 Engineer lays Concrete. 00744_ Ion Engine destroyed. 00744_ G-34 Mercenary destroyed. 00745_ U-05 Engineer lays Concrete. 00748_ Lgt. Treads destroyed. 00749_ U-05 Engineer lays Concrete. 00751_ U-05 Engineer builds a Wall. 00752_ U-05 Engineer lays Concrete. 00755_ U-05 Engineer builds a Wall. 00755_ Mining Laser destroyed. 00756_ G-47 Trooper destroyed. 00757_ R-06 Scavenger collects Aluminum Leg. 00759_ U-05 Engineer builds a Wall. 00761_ R-06 Scavenger collects Aluminum Leg. Map ----- +----------------------------------------------------+ | ????????????????##########???????# #? | | ????????????????# #???????# #? | | ????????????????# T #???##### #? | | ????????????????# % #???# # #? | | ????????????????# #???# # #? | | ????????????????# #???# # #? | | ????????????????# """ #???# ###+#######? | | ????????????????# """ #???# #???? | | ????????????????# """ #???# #???? | | ????????????????# #???# ##### | | ??????????# #######+############### # | | ??????????+ # # # | | ??????????# # # # " " | | ??????????# # """ + + "R" | | ??????????# ############# # """ # # """ | | ??????????#?????????????# # """ # # | | ???????????????########## # # ##### | | ???????????????# # ######## #???? | | ???????????????# # ####### #???? | | ???????????????# ; ##### | | ???????????????# """ ;% | | ???????????????# """"" ; | | ???????????????# """"" # | | ???????????????# """""*g# ##### | | ???????????????# """% g#u ########???? | | ???????????????# @%%r ##?????????? | | ???????????????######## T#?????????? | | ?????????????????????# ##?????????? | | ?????????????????????# #??????????? | | ?????????????????????# #??????????? | | ?????????????????????# #??????????? | | ?????????????????????## #??????????? | | ?????????????????????# #??????????? | | ??????????????# ???# #??????????? | | ??????????????# ## ######?????? | | ???????????? ^ ^ % #?????? | | ??????????? #?????? | | ???????????? ^^^ ^ #?????? | | ???????????? ####+####+## #?????? | | ????????????????????? ?###### ###???? | | ????????????????????# ???????# ""#???? | | ????????????????????#!???????# = * ""#???? | | ????????????????????#????????# * * T"#???? | | ?????????????????????????????# ** ""#???? | | ?????????????????????????????# ""#???? | | ?????????????????????????????# ! ###???? | | ?????????????????????????????# #?????? | | ?????????????????????????????# #?????? | | ????????????????????????????# # #?????? | | ????????????????????????????# # #?????? | +----------------------------------------------------+ Best States ------------- Heat Dissipation 25 Energy Generation 10 Energy Capacity 250 Matter Stores 300 Matter Capacity 300 Sight Range 16 Terrain Scan Density 10 Evasion (%) 40 Recoil Reduction 1 Item Schematics ----------------- None Robot Schematics ------------------ None Fabricated ------------ Nothing Alien Tech Used ----------------- None Achievements -------------- None Challenges ------------ None Game ------ Seed KineticAngularApparatus Manual? 0 Play Time 00:13:08 Cumulative 9.6 hours Start 2020.05.29 @ 13:58:23 End 2020.05.29 @ 15:03:52 Sessions 3 Manual Loads 0 Difficulty Rogue Special Mode None Game No. 14 Rogue 13 Adventurer 0 Explorer 1 Win Type - Total 0 Types 0/0/0/0/0/0/0 Lore% 5 Gallery% 18 Achievement% 14 Wizard Run 0 Options --------- ASCII 1 Keyboard 1 Movement Numpad Keybinds 0 Fullscreen 1 Font 18/SmallcapsGlow Map View 76x50 Tactical HUD 1 Map Filters NONE Filters NONE Steam 1 RUN: 0c24484e-16fb-4f23-b369-d70785566225